[Event "German Bundesliga 2024-25"]
[Site "Germany"]
[Date "2024.10.06"]
[Round "2.14"]
[White "Donchenko, Alexander"]
[Black "Delchev, Aleksander"]
[Result "1-0"]
[Annotator "RC"]
[ECO "C95"]
[WhiteElo "2626"]
[BlackElo "2473"]
[PlyCount "167"]
[EventDate "2024.09.27"]
[EventType "team-tourn"]
[EventCountry "GER"]
[SourceTitle "playchess.com"]
[Source "ChessBase"]
[SourceQuality "1"]
[WhiteTeam "Baden-Baden"]
[BlackTeam "Deggendorf"]
[TimeControl "40/5400+30:1800+30"]

1. e4 {[%emt 0:00:03]} e5 {[%emt 0:00:13]} 2. Nf3 {[%emt 0:00:08]} Nc6 {[%emt 0:00:07]} 3. Bb5 {[%emt 0:00:06]} a6 {[%emt 0:01:21]} 4. Ba4 {[%emt 0:00:06]} Nf6 {[%emt 0:00:08]} 5. O-O {[%emt 0:00:11]} Be7 {[%emt 0:00:05]} 6. Re1 {[%emt 0:00:19]} b5 {[%emt 0:00:26]} 7. Bb3 {[%emt 0:00:05]} d6 {[%emt 0:00:08]} 8. c3 {[%emt 0:00:26]} O-O {[%emt 0:00:08]} 9. h3 {[%emt 0:00:13]} Nb8 {[%emt 0:01:53]} 10. d4 {[%emt 0:00:29]} Nbd7 {[%emt 0:00:06]} 11. Nbd2 {[%emt 0:01:21]} Bb7 {[%emt 0:00:08]} 12. Bc2 {[%emt 0:01:48]} Re8 {[%emt 0:00:06]} 13. Nf1 {[%emt 0:03:22]} Bf8 {[%emt 0:00:06]} 14. Ng3 {[%emt 0:00:27]} g6 {[%emt 0:00:09]} 15. a4 {[%emt 0:01:30]} c5 {[%emt 0:03:10]} 16. d5 {[%emt 0:03:20]} c4 {[%emt 0:00:08]} 17. Bg5 {[%emt 0:01:11]} h6 {[%emt 0:05:42]} 18. Be3 {[%emt 0:00:55]} Qc7 {[%emt 0:08:23]} 19. Qd2 {[%emt 0:02:43]} Kh7 {[%emt 0:00:05]} 20. Qe2 {[%emt 0:13:25]} Nc5 {[%emt 0:02:41]} 21. h4 {[%emt 0:05:12]} h5 {[%emt 0:18:04]} 22. Ng5+ {[%emt 0:13:38]} Kg8 {[%emt 0:02:01]} 23. Nf1 {[%emt 0:01:02]} Rab8 {[%emt 0:03:31]} 24. Nh2 {[%emt 0:07:51]} Bc8 {[%emt 0:01:05]} 25. Ra2 {[%emt 0:03:01]} Bd7 {[%emt 0:07:15]} 26. axb5 {[%emt 0:01:30]} axb5 {[%emt 0:00:04]} 27. Rea1 {[%emt 0:00:23]} Rb7 {[%emt 0:06:57]} 28. Bd2 {[%emt 0:07:40]} Bg7 {[%emt 0:03:17]} 29. g3 {[%emt 0:05:53]} Rc8 {[%emt 0:11:22]} 30. Kh1 {[%emt 0:02:31]} Qd8 {[%emt 0:00:25]} 31. Qf1 {[%emt 0:07:00]} Be8 {[%emt 0:09:42]} 32. Ra3 {[%emt 0:03:38]} Rbb8 {[%emt 0:02:06]} 33. Be3 {[%emt 0:03:43]} Ncd7 {[%emt 0:05:57]} 34. R1a2 {[%emt 0:04:15]} Nc5 {[%emt 0:01:44]} 35. Ra7 {[%emt 0:02:37]} Rc7 {[%emt 0:02:28]} 36. Qa1 {[%emt 0:00:41]} Nfd7 {[%emt 0:03:07]} 37. Bd1 {[%emt 0:02:33]} Nf6 {[%emt 0:00:57]} 38. Rxc7 {[%emt 0:00:41]} Qxc7 {[%emt 0:00:04]} 39. Ra7 {[%emt 0:00:05]} Rb7 {[%emt 0:01:02]} 40. Ra8 {[%emt 0:01:09]} Rb8 {[%emt 0:01:47]} 41. Ra7 {[%emt 0:03:28]} Rb7 {[%emt 0:01:58]} 42. Bxc5 {[%emt 0:05:16]} dxc5 {[%emt 0:00:06]} 43. Ra8 {[%emt 0:00:35]} Rb8 {[%emt 0:04:44]} 44. Bf3 {[%emt 0:03:46]} Bf8 {[%emt 0:01:33]} 45. Bg2 {[%emt 0:03:23]} Bd6 {[%emt 0:00:28]} 46. Bh3 {[%emt 0:01:41]} Kg7 {[%emt 0:01:30]} 47. Nf1 {[%emt 0:03:34]} Nd7 {[%emt 0:05:58]} 48. Ne3 {[%emt 0:02:34]} Nb6 {[%emt 0:02:26]} 49. Rxb8 {[%emt 0:02:02]} Qxb8 {[%emt 0:00:04]} 50. g4 {[%emt 0:00:27]} hxg4 {[%emt 0:00:59]} 51. Bxg4 {[%emt 0:00:07]} Qa8 {[%emt 0:01:23]} 52. Qg1 {[%emt 0:01:26]} Qd8 {[%emt 0:03:00]} 53. Bh3 {[%emt 0:02:09]} Qf6 {[%emt 0:05:24]} 54. Qg2 {[%emt 0:02:49]} Kh8 {[%emt 0:03:08]} 55. h5 {[%emt 0:03:05]} gxh5 {[%emt 0:02:29]} 56. Nf5 {[%emt 0:00:23]} Bf8 {[%emt 0:00:04]} 57. Qg3 {[%emt 0:01:21]} Nd7 {[%emt 0:00:27]} 58. Qh4 {[%emt 0:01:20]} Qg6 {[%emt 0:00:50]} 59. Nf3 {[%emt 0:00:55]} f6 {[%emt 0:00:38]} 60. Ng3 {[%emt 0:00:10]} Qh6 {[%emt 0:00:54]} 61. Kg2 {[%emt 0:00:43]} Qf4 {[%emt 0:00:52]} 62. Qxf4 {[%emt 0:01:29]} exf4 {[%emt 0:00:05]} 63. Bxd7 {[%emt 0:00:04]} Bxd7 {[%emt 0:00:04]} 64. Nxh5 {[%emt 0:00:05]} Be7 {[%emt 0:00:09]} 65. Nh4 {[%emt 0:01:18]} Kg8 {[%emt 0:03:28]} 66. Nxf4 {[%emt 0:00:29]} Kf7 {[%emt 0:00:44]} 67. Kf3 {[%emt 0:00:32]} b4 {[%emt 0:00:38]} 68. Nf5 {[%emt 0:01:15]} Bxf5 {[%emt 0:00:08]} 69. exf5 {[%emt 0:00:02]} Bd6 {[%emt 0:00:06]} 70. Ng2 {[%emt 0:00:49]} bxc3 {[%emt 0:00:34]} 71. bxc3 {[%emt 0:00:02]} Be5 {[%emt 0:00:05]} 72. Ne3 {[%emt 0:00:04]} Bxc3 {[%emt 0:00:04]} 73. Nxc4 {[%emt 0:00:06]} Ke7 {[%emt 0:01:07]} 74. Ke4 {[%emt 0:00:06]} Kd7 {[%emt 0:00:05]} 75. Kd3 {[%emt 0:00:19]} Bd4 {[%emt 0:02:03]} 76. f3 {[%emt 0:01:09]} Kc7 {[%emt 0:01:03]} 77. Nd2 {[%emt 0:01:16]} Kd6 {[%emt 0:00:14]} 78. Kc4 {[%emt 0:00:06]} Ke5 {[%emt 0:00:05]} 79. Nb3 {[%emt 0:00:35]} Bg1 {[%emt 0:00:28]} 80. Nxc5 {[%emt 0:00:02]} Kxf5 {[%emt 0:00:08]} 81. d6 {[%emt 0:01:36]} Bh2 {[%emt 0:00:05]} 82. d7 {[%emt 0:00:07]} Bc7 {[%emt 0:00:04]} 83. Kd5 {[%emt 0:00:12]} Bb6 {[%emt 0:01:38]} 84. Nb7 {[%emt 0:00:27]} 1-0

[Event "German Bundesliga 2024-25"]
[Site "Germany"]
[Date "2024.10.06"]
[Round "2.14"]
[White "Wachinger, Nikolas"]
[Black "Vlasak, Lukas"]
[Result "1/2-1/2"]
[Annotator "RC"]
[ECO "B12"]
[WhiteElo "2442"]
[BlackElo "2461"]
[PlyCount "48"]
[EventDate "2024.09.27"]
[EventType "team-tourn"]
[EventCountry "GER"]
[SourceTitle "playchess.com"]
[Source "ChessBase"]
[SourceQuality "1"]
[WhiteTeam "Werder Bremen"]
[BlackTeam "Bad Mergentheim"]
[TimeControl "40/5400+30:1800+30"]

1. e4 {[%emt 0:00:04]} c6 {[%emt 0:00:15]} 2. d4 {[%emt 0:00:47]} d5 {[%emt 0:00:09]} 3. e5 {[%emt 0:00:09]} Bf5 {[%emt 0:00:10]} 4. Nd2 {[%emt 0:00:15]} e6 {[%emt 0:01:42]} 5. Nb3 {[%emt 0:00:08]} c5 {[%emt 0:00:29]} 6. dxc5 {[%emt 0:01:40]} Bxc5 {[%emt 0:00:18]} 7. Bb5+ {[%emt 0:00:16]} Nc6 {[%emt 0:00:28]} 8. Bxc6+ {[%emt 0:00:13]} bxc6 {[%emt 0:00:11]} 9. Nxc5 {[%emt 0:00:07]} Qa5+ {[%emt 0:00:12]} 10. c3 {[%emt 0:00:20]} Qxc5 {[%emt 0:00:08]} 11. Ne2 {[%emt 0:00:14]} Ne7 {[%emt 0:01:02]} 12. O-O {[%emt 0:00:00]} O-O {[%emt 0:01:00]} 13. Be3 {[%emt 0:02:21]} Qb5 {[%emt 0:00:13]} 14. b4 {[%emt 0:01:07]} Bd3 {[%emt 0:00:53]} 15. Nd4 {[%emt 0:01:27]} Qc4 {[%emt 0:00:09]} 16. Re1 {[%emt 0:00:13]} c5 {[%emt 0:03:11]} 17. bxc5 {[%emt 0:04:23]} h6 {[%emt 0:00:35]} 18. Qd2 {[%emt 0:21:50]} Rac8 {[%emt 0:01:52]} 19. a4 {[%emt 0:07:30]} a6 {[%emt 0:13:10]} 20. Ra3 {[%emt 0:29:01]} Rxc5 {[%emt 0:23:44]} 21. Rea1 {[%emt 0:06:01]} Rcc8 {[%emt 0:04:12]} 22. Rb3 {[%emt 0:00:50]} Bg6 {[%emt 0:15:53]} 23. Raa3 {[%emt 0:03:25]} Nc6 {[%emt 0:07:49]} 24. Nxc6 {[%emt 0:01:11]} Rxc6 {[%emt 0:00:34]} 1/2-1/2

[Event "German Bundesliga 2024-25"]
[Site "Germany"]
[Date "2024.09.29"]
[Round "2.15"]
[White "Zelcic, Robert"]
[Black "Gustafsson, Jan"]
[Result "1-0"]
[Annotator "TA"]
[ECO "B19"]
[WhiteElo "2444"]
[BlackElo "2604"]
[PlyCount "107"]
[EventDate "2024.09.27"]
[EventType "team-tourn"]
[EventCountry "GER"]
[SourceTitle "playchess.com"]
[Source "ChessBase"]
[SourceQuality "1"]
[WhiteTeam "SK Kirchweyhe"]
[BlackTeam "Duesseldorfer SK"]
[TimeControl "40/5400+30:1800+30"]

{[%evp 26,107,0,-18,18,0,15,5,35,37,34,0,8,4,23,10,14,13,18,16,31,25,31,-69,0,0,0,0,10,0,12,0,0,0,0,-13,-18,-33,0,-41,-24,-84,-75,-124,0,0,43,48,264,229,266,282,267,206,282,285,260,313,303,300,309,291,336,335,309,319,345,296,447,433,511,522,700,686,612,680,1158,1105,1166,1121,29975,29976,29976,29976]} 1. e4 {[%emt 0:00:04]} c6 {[%emt 0:00:12]} 2. d4 {[%emt 0:00:05]} d5 {[%emt 0:00:09]} 3. Nc3 {[%emt 0:00:04]} dxe4 {[%emt 0:00:12]} 4. Nxe4 {[%emt 0:00:05]} Bf5 {[%emt 0:00:15]} 5. Ng3 {[%emt 0:00:17]} Bg6 {[%emt 0:00:13]} 6. Nf3 {[%emt 0:00:57]} Nd7 {[%emt 0:00:17]} 7. h4 {[%emt 0:05:14]} h6 {[%emt 0:01:39]} 8. h5 {[%emt 0:00:04]} Bh7 {[%emt 0:00:10]} 9. Bd3 {[%emt 0:00:03]} Bxd3 {[%emt 0:00:14]} 10. Qxd3 {[%emt 0:00:03]} e6 {[%emt 0:00:14]} 11. Bd2 {[%emt 0:00:12]} Ngf6 {[%emt 0:00:13]} 12. O-O-O {[%emt 0:00:06]} Be7 {[%emt 0:00:17]} 13. Kb1 {[%emt 0:04:39]} Qb6 {[%emt 0:01:19] B19: Classical Caro-Kann: 4...Bf5 main line.} 14. Nh4 {[%emt 0:00:04]} O-O-O {[%emt 0:00:45]} 15. Nf3 {[%emt 0:33:10]} Rhe8 {[%emt 0:03:25]} 16. Qe2 $146 {[%emt 0:00:25]} ({Predecessor:} 16. c4 c5 17. d5 exd5 18. cxd5 Ng4 19. Rhf1 Bf6 20. Bc1 Kb8 21. Qf5 Nge5 22. Nxe5 Nxe5 {½-½ Buksa,N (2407)-Trigo Urquijo,S (2402) ESP-chT CECLUB Honor 2022 (3.2)}) 16... c5 {[%emt 0:22:03]} 17. Ne5 {[%emt 0:03:09]} Rf8 {[%emt 0:00:07]} 18. Qc4 {[%emt 0:11:06]} Kb8 {[%emt 0:07:11]} 19. Bf4 {[%emt 0:02:01]} Ka8 {[%emt 0:01:04]} 20. dxc5 {[%emt 0:04:15]} (20. Nxd7 {looks sharper.} Rxd7 21. dxc5 Rxd1+ 22. Rxd1 Bxc5 23. Ne4) 20... Nxe5 {[%emt 0:16:10]} 21. Bxe5 {[%emt 0:00:42]} Bxc5 {[%emt 0:00:28]} (21... Qxc5 {simplifies} 22. Qxc5 Bxc5 23. f3 b5) 22. f3 {[%emt 0:07:21]} Rxd1+ {[%emt 0:20:12]} 23. Rxd1 {[%emt 0:00:10]} Nd5 {[%emt 0:01:24]} 24. Bd4 {[%emt 0:10:12]} (24. Bxg7 $2 Ne3 25. Qd3 Nxd1 26. Qxd1 Rd8 $19) ({Better is} 24. Rd3 $14) 24... Bxd4 {[%emt 0:01:23]} (24... Rd8 $1 $15 25. Qxc5 Qxc5 26. Bxc5 Nc3+ 27. bxc3 Rxd1+ 28. Kb2 Rd2) 25. Qxd4 {[%emt 0:00:07]} Qxd4 {[%emt 0:03:16]} 26. Rxd4 {[%emt 0:00:05]} Ne3 {[%emt 0:00:20]} 27. Ne2 {[%emt 0:01:50]} Nxg2 {[%emt 0:01:43]} 28. Rg4 {[%emt 0:00:05]} Ne3 {[%emt 0:02:18]} 29. Rxg7 {[%emt 0:00:08]} Kb8 {[%emt 0:01:17]} 30. Ng3 {[%emt 0:01:26]} Rd8 {[%emt 0:02:20]} 31. b3 {[%emt 0:02:26]} Rd1+ $1 {[%emt 0:01:25]} 32. Kb2 {[%emt 0:00:04]} Rg1 {[%emt 0:01:36]} 33. Kc3 {[%emt 0:04:49]} (33. c4 $11) 33... Rg2 $1 $17 {[%emt 0:02:31]} 34. f4 {[%emt 0:02:48] [#]} (34. a4 $142) 34... Kc8 {[%emt 0:04:45]} (34... Rxc2+ 35. Kd3 Rxa2 36. Kxe3 $18) (34... f5 $1 $17 35. Kd4 Ng4) 35. f5 $1 $11 {[%emt 0:01:44]} Kd8 {[%emt 0:04:55]} ({Of course not} 35... exf5 36. Nxf5 Rxg7 (36... Rxc2+ $2 37. Kd3 $18) 37. Nxg7 $14) (35... Nxc2 36. f6 Ne1 37. Ne4 Rc2+ 38. Kd4 Nf3+ 39. Ke3 $16) (35... Rxc2+ $2 36. Kd3 exf5 37. Kxe3 $18) 36. f6 $1 {[%emt 0:01:30]} Ke8 $2 {[%emt 0:01:24] [#]} (36... Nd5+ $1 $14 37. Kb2 Nxf6 38. Rxf7 Nd5) 37. Ne4 $1 $18 {[%emt 0:00:25]} Rh2 {[%emt 0:00:58]} 38. Nd6+ {[%emt 0:02:22]} Kd7 {[%emt 0:00:02]} 39. Nxb7 {[%emt 0:00:20]} ({Don't play} 39. Nxf7 Nd5+ 40. Kb2 Nxf6 41. Nxh6+ Kc6 $16) 39... Nd5+ {[%emt 0:00:42]} 40. Kb2 {[%emt 0:00:06]} e5 {[%emt 0:00:44]} 41. Rxf7+ {[%emt 0:10:39]} Ke6 {[%emt 0:00:11]} 42. Nd8+ {[%emt 0:07:48]} Kf5 {[%emt 0:00:28]} 43. Rxa7 {[%emt 0:00:12]} Nxf6 {[%emt 0:01:49]} 44. Nc6 {[%emt 0:04:33]} e4 {[%emt 0:02:22]} 45. Re7 {[%emt 0:00:17]} Kf4 {[%emt 0:00:11]} 46. a4 {[%emt 0:03:47]} e3 {[%emt 0:00:33]} (46... Nd5 $142 47. Rf7+ Kg3) 47. Nb4 $18 {[%emt 0:01:41]} Rxh5 {[%emt 0:01:24]} 48. Nd3+ {[%emt 0:00:12]} Kf3 {[%emt 0:01:37]} 49. Rf7 {[%emt 0:00:08]} Rf5 {[%emt 0:00:08]} 50. a5 {[%emt 0:00:03]} Ke4 {[%emt 0:00:30]} 51. a6 {[%emt 0:00:54]} Nd5 {[%emt 0:00:55]} 52. a7 {[%emt 0:00:12]} Rxf7 {[%emt 0:01:10]} 53. a8=Q {[%emt 0:00:07]} (53. a8=B Kd4 54. Bc6 Rf6 $19) 53... e2 {[%emt 0:00:15]} 54. Qc6 {[%emt 0:00:23]} 1-0

[Event "German Bundesliga 2024-25"]
[Site "Germany"]
[Date "2024.10.06"]
[Round "2.15"]
[White "Tilicheev, Viacheslav"]
[Black "Hagner, Bennet"]
[Result "0-1"]
[Annotator "TA"]
[ECO "E48"]
[WhiteElo "2438"]
[BlackElo "2311"]
[PlyCount "64"]
[EventDate "2024.09.27"]
[EventType "team-tourn"]
[EventCountry "GER"]
[SourceTitle "playchess.com"]
[Source "ChessBase"]
[SourceQuality "1"]
[WhiteTeam "Deggendorf"]
[BlackTeam "Baden-Baden"]
[TimeControl "40/5400+30:1800+30"]

{[%evp 11,64,0,5,-2,0,-14,-2,-21,-2,-23,4,0,0,-10,31,11,27,-25,37,-135,-88,-84,-85,-101,-23,-72,-70,-74,-80,-100,-110,-113,-115,-185,-184,-114,-11,-42,0,0,0,0,0,-975,-958,-937,-925,-936,-887,-933,-364,-29988,-29985,-29979,-5206]} 1. d4 {[%emt 0:00:03]} Nf6 {[%emt 0:00:05]} 2. c4 {[%emt 0:00:07]} e6 {[%emt 0:00:03]} 3. Nc3 {[%emt 0:00:06]} Bb4 {[%emt 0:00:04]} 4. e3 {[%emt 0:00:07]} O-O {[%emt 0:00:06]} 5. Bd3 {[%emt 0:00:14]} d5 {[%emt 0:00:06]} 6. cxd5 {[%emt 0:00:06]} exd5 {[%emt 0:00:26]} 7. a3 {[%emt 0:00:07]} Bd6 {[%emt 0:01:59]} 8. Qc2 {[%emt 0:00:13]} c6 {[%emt 0:04:29]} 9. Nge2 {[%emt 0:00:41] The position is equal.} Re8 {[%emt 0:00:10]} 10. Bd2 {[%emt 0:00:41]} Nbd7 {[%emt 0:01:21]} 11. f3 {[%emt 0:00:27]} c5 {[%emt 0:03:56]} 12. h4 {[%emt 0:00:32]} g6 {[%emt 0:17:12] [#]} 13. h5 $1 {[%emt 0:01:01][%cal Rh5g6] hxg6 would now be deadly.} Nxh5 {[%emt 0:12:56]} (13... gxh5 $2 14. O-O-O $16) 14. Nxd5 {[%emt 0:18:05]} (14. Rxh5 $142 gxh5 15. Bxh7+ Kg7 16. O-O-O) 14... cxd4 {[%emt 0:12:10]} (14... Ng3 $11 15. Rh6 Bf8) 15. e4 $2 {[%emt 0:28:30]} (15. Rxh5 $1 $14 {stays ahead.} gxh5 16. Bxh7+ Kf8 17. O-O-O) 15... Ng3 {[%emt 0:05:18]} (15... Ne5 $142 {Threatens to win with ...Be6.} 16. Bb5 Be6) 16. Nxg3 $17 {[%emt 0:01:09]} Bxg3+ {[%emt 0:00:03]} 17. Kf1 {[%emt 0:00:40]} Ne5 {[%emt 0:08:25]} ({Black should try} 17... Nf6 $17 18. Nf4 Be6) 18. Bb5 {[%emt 0:10:38]} (18. Qa4 $1 $11 {was preferrable.} Nc6 (18... Nxd3 $2 19. Nf6+ Kg7 20. Nxe8+ Kh8 21. Nf6 $18) 19. f4) 18... Bd7 {[%emt 0:07:39]} 19. Bxd7 {[%emt 0:00:16]} Nxd7 {[%emt 0:00:03]} 20. Qa4 {[%emt 0:00:41][%cal Oa4d7] [#] Qxd7! is the strong threat.} Be5 $1 {[%emt 0:01:59]} 21. Qb5 {[%emt 0:03:52][%cal Oa1d1]} Rc8 {[%emt 0:05:31]} 22. Qxb7 {[%emt 0:07:44]} (22. Rd1 $17) 22... Rc2 $19 {[%emt 0:00:24]} 23. Rd1 {[%emt 0:00:51]} (23. Bh6 $19) 23... Nb6 {[%emt 0:04:14] Really sharp!} (23... Nc5 $17 24. Qxa7 Nd3 25. Rxh7 Kxh7 26. Qxf7+ Bg7) 24. Rxh7 $1 $11 {[%emt 0:10:13]} Kxh7 {[%emt 0:06:47]} 25. Qxf7+ {[%emt 0:00:16]} Bg7 {[%emt 0:00:02]} 26. Ke2 $1 {[%emt 0:00:28] Rh1+ would kill now.} Re5 {[%emt 0:01:24]} (26... Nxd5 27. Rh1+) 27. g4 {[%emt 0:03:07][%mdl 8192] Dodges Rh5} Qh4 $19 {[%emt 0:03:01]} ({Inferior is} 27... Nxd5 28. Rh1+ $16) 28. Kd3 {[%emt 0:05:33] [#]} Rxd2+ $1 {[%emt 0:01:18]} 29. Rxd2 {[%emt 0:00:06]} Nxd5 {[%emt 0:00:06]} 30. exd5 {[%emt 0:00:20]} Qh1 $2 {[%emt 0:00:47]} (30... Re7 31. Qf4 Re3+ 32. Kc2 Qe7) 31. d6 $2 {[%emt 0:02:23]} (31. Kc2 $19) 31... Qb1+ {[%emt 0:00:43]} 32. Kxd4 {[%emt 0:02:47]} Re7+ {[%emt 0:00:27] Weighted Error Value: White=0.49/Black=0.45.  Loses game:     	White=1     	---        Mistake:       	White=5     	Black=4      Inaccurate:     	---       	Black=3      OK:         	White=7     	Black=6      Best:        	White=1     	Black=3      Strong:       	White=2     	Black=1} (32... Re1+ $142 33. Kc5 Qc1+ 34. Kb5 Qxd2 35. Qc4 Qxd6 (35... Qxb2+ $2 36. Qb4 $19) 36. Ka4 Re5 (36... Bxb2 37. Qb4 Qc6+ 38. Qb5 Qxf3 39. Qxb2 Qc6+ 40. Ka5 Qc7+ 41. Ka4 Re4+ 42. Qb4 Qc6+ 43. Kb3 Re3+ 44. Ka2 Qc2+ 45. Qb2 Qc4+ 46. Ka1 Re1+ 47. Qb1 Qc3+ 48. Ka2 Re2+ 49. Qc2 Rxc2+ 50. Kb1 Qb2#) 37. Kb3 Rc5 38. Qe2 Qd5+ 39. Ka4 Ra5+ 40. Kb4 Bf8+ 41. Kc3 Rc5+ 42. Kb4 Rc2+ (42... Rb5+ {gets mated.} 43. Kc3 Bg7+ 44. Kc2 Rxb2+ 45. Kc1 Qc5+ 46. Kd1 Rb1+ 47. Kd2 Qc3#) (42... Rc4+ {leads to mate.} 43. Kb3 Re4+ 44. Kc2 Rxe2+ 45. Kb1 Qd4 46. g5 Qxb2#) 43. Ka4 Rxe2 44. b4 Re5 45. f4 Qd1#) 0-1

[Event "German Bundesliga 2024-25"]
[Site "Germany"]
[Date "2024.10.06"]
[Round "2.15"]
[White "Nemec, Jachym"]
[Black "Grigorian, Spartak"]
[Result "1-0"]
[Annotator "TA"]
[ECO "E46"]
[WhiteElo "2398"]
[BlackElo "2433"]
[PlyCount "69"]
[EventDate "2024.09.27"]
[EventType "team-tourn"]
[EventCountry "GER"]
[SourceTitle "playchess.com"]
[Source "ChessBase"]
[SourceQuality "1"]
[WhiteTeam "Bad Mergentheim"]
[BlackTeam "Werder Bremen"]
[TimeControl "40/5400+30:1800+30"]

{[%evp 13,69,-5,-1,-3,0,0,0,-21,21,3,6,11,-3,-4,28,38,27,30,72,75,167,121,143,137,153,144,144,140,124,135,143,108,353,337,349,337,326,326,427,310,281,152,141,158,142,142,467,385,466,459,1214,1206,29995,29996,29996,29997,29997,29998]} 1. d4 {[%emt 0:00:03]} Nf6 {[%emt 0:00:10]} 2. c4 {[%emt 0:00:05]} e6 {[%emt 0:00:07]} 3. Nc3 {[%emt 0:00:25]} Bb4 {[%emt 0:00:07]} 4. e3 {[%emt 0:00:06]} O-O {[%emt 0:00:07]} 5. Nge2 {[%emt 0:00:06]} Re8 {[%emt 0:00:07]} 6. a3 {[%emt 0:01:02]} Bf8 {[%emt 0:00:03]} 7. Ng3 {[%emt 0:02:58]} d5 {[%emt 0:00:07]} 8. cxd5 {[%emt 0:00:05]} exd5 {[%emt 0:00:06]} 9. Bd3 {[%emt 0:01:15]} b6 {[%emt 0:00:17]} 10. b4 {[%emt 0:01:33] The position is equal.} Nbd7 {[%emt 0:10:13]} 11. O-O {[%emt 0:04:00]} c5 {[%emt 0:03:14]} 12. Rb1 {[%emt 0:04:47]} cxd4 {[%emt 0:04:50]} 13. exd4 {[%emt 0:00:10]} a5 {[%emt 0:00:16]} 14. Bf4 {[%emt 0:12:02]} axb4 {[%emt 0:03:50]} 15. axb4 {[%emt 0:00:07][%cal Ba3b4,Bb4b5][%mdl 32]} Nb8 {[%emt 0:01:07]} 16. Bg5 {[%emt 0:06:50]} Na6 {[%emt 0:05:51]} (16... Bb7 $16) 17. Bxf6 {[%emt 0:11:18]} (17. Nh5 $18 {Threatens to win with Bxf6.} Be7 18. Bb5) 17... Qxf6 $16 {[%emt 0:00:34]} 18. Nxd5 {[%emt 0:00:05]} Qd8 {[%emt 0:14:03] [#]} 19. Qh5 {[%emt 0:02:26][%csl Gd3][%cal Rh5h7]} h6 {[%emt 0:01:50]} ({But not} 19... g6 $2 20. Qf3 Kg7 21. Nxb6 $18) 20. b5 {[%emt 0:05:17] White has more active pieces.} Nb8 {[%emt 0:00:08]} 21. Rfd1 {[%emt 0:02:23]} Ra3 {[%emt 0:05:27]} 22. Ne3 $40 {[%emt 0:02:23][%cal Bd5e3,Be3f5,Bf5h4,Bh4g6,Bg6e5,Be5g6,Bg6e7][%mdl 160] White wants a kill. Excellent horsemanship.} Nd7 $2 {[%emt 0:03:25]} (22... Be6 $16 {is a better defense.}) 23. Bc4 $18 {[%emt 0:02:19]} Nf6 {[%emt 0:23:19]} 24. Qxf7+ {[%emt 0:00:41]} Kh8 {[%emt 0:02:57]} 25. Nef5 {[%emt 0:02:06] Repels Re7} Rc3 {[%emt 0:04:25]} 26. Re1 {[%emt 0:06:26] [#] Nh4 is the strong threat.} Bd7 {[%emt 0:10:03][%cal Bc8d7,Bd7b5,Bb5e8][%mdl 32]} 27. Ba2 {[%emt 0:09:00]} ({White should play} 27. Rec1 $18 Rxc4 28. Qxc4 (28. Rxc4 Be6 $18)) 27... Rxe1+ $16 {[%emt 0:03:52]} 28. Rxe1 {[%emt 0:00:13]} Bxb5 {[%emt 0:00:18][%cal Od8e8]} 29. Nh4 {[%emt 0:07:19] White wants to mate with Nh5.} Bb4 $2 {[%emt 0:01:33][%mdl 8192] This move loses the game for Black.} (29... Bd3 $16) 30. Ng6+ {[%emt 0:04:50]} Kh7 {[%emt 0:00:01][%cal Oc3c7] ...Rc7! would now be deadly.} 31. Ne5 {[%emt 0:00:52]} Rxg3 {[%emt 0:02:54]} (31... Bd3 $142 32. Nxd3 Rxd3) 32. hxg3 $18 {[%emt 0:00:46] Intending Qg6+ and mate.} Be8 {[%emt 0:00:04]} 33. Bb1+ {[%emt 0:00:09] White mates.} Kh8 {[%emt 0:00:06]} 34. Ng6+ {[%emt 0:00:04]} Kh7 {[%emt 0:00:05]} 35. Ne7+ {[%emt 0:00:13] Weighted Error Value: White=0.27 (precise) /Black=0.65.  Loses game:     	---       	Black=2      Mistake:       	White=2     	Black=2      Inaccurate:     	---       	Black=5      OK:         	White=11    	Black=6      Best:        	White=2     	Black=1} 1-0